[Event "9th Porticcio Open 2024"]
[Site "Porticcio"]
[Date "2024.07.01"]
[Round "3.7"]
[White "Lagarde, Maxime"]
[Black "Ouellet, Maili-Jade"]
[Result "1/2-1/2"]
[ECO "B30"]
[WhiteElo "2604"]
[BlackElo "2290"]
[Annotator "TA"]
[PlyCount "178"]
[EventDate "2024.07.01"]
[EventType "swiss"]
[EventCountry "FRA"]
[SourceTitle "playchess.com"]
[Source "ChessBase"]
[SourceQuality "1"]
[TimeControl "5400+30"]

{[%evp 72,178,111,100,132,115,114,116,112,115,131,131,131,131,200,200,200,200,217,217,213,94,94,94,94,94,136,27,129,129,129,27,48,14,14,0,129,129,129,14,14,8,14,8,8,7,7,0,48,48,81,88,129,129,129,101,108,109,1218,1096,812,520,4618,1785,9519,8,8,8,8,8,8,8,127,8,8,8,8,8,8,8,127,0,127,127,127,8,127,127,127,127,127,127,127,8,8,8,127,127,127,127,127,0,127,0,127,0,127,0,128]} 1. e4 {[%emt 0:03:34]} c5 {[%emt 0:00:03]} 2. Nf3 {[%emt 0:00:05]} Nc6 {[%emt 0:00:03]} 3. Bb5 {[%emt 0:00:03]} e6 {[%emt 0:00:07]} 4. O-O {[%emt 0:00:10]} Nge7 {[%emt 0:00:06]} 5. Re1 {[%emt 0:00:06]} a6 {[%emt 0:00:08]} 6. Bf1 {[%emt 0:00:05]} d5 {[%emt 0:00:20]} 7. exd5 {[%emt 0:00:33]} Nxd5 {[%emt 0:00:06]} 8. d4 {[%emt 0:00:03]} Nf6 {[%emt 0:00:09]} 9. Be3 {[%emt 0:00:05]} Be7 {[%emt 0:00:14] B30: Sicilian: 2...Nc6 3 Bb5, lines without ...g6.} 10. c4 {[%emt 0:00:07]} O-O {[%emt 0:00:24]} 11. Nc3 {[%emt 0:00:12]} cxd4 {[%emt 0:00:21]} 12. Nxd4 {[%emt 0:00:04]} Ne5 $1 {[%emt 0:00:26][%mdl 4] is currently scoring better than 12...Bd7.} 13. h3 {[%emt 0:07:03]} Bd7 {[%emt 0:00:42]} 14. c5 {[%emt 0:08:41]} Qc8 $146 {[%emt 0:10:17]} ({Predecessor:} 14... Rc8 15. b4 a5 16. a3 b6 17. Ba6 Ra8 18. Qe2 axb4 19. axb4 bxc5 20. bxc5 Re8 21. Nb3 Qb8 22. Rab1 Qc7 23. Bf4 Rxa6 24. Bxe5 Qa7 25. Nb5 {½-½ Betker,J (2452)-Wenzel,S (2436) Danube tt5 email 2016 [1]}) 15. Rc1 {[%emt 0:03:43]} Rd8 {[%emt 0:03:34]} 16. b4 {[%emt 0:03:19]} Nc6 {[%emt 0:04:46]} 17. Qb3 {[%emt 0:04:12]} Nxd4 {[%emt 0:02:57]} 18. Bxd4 {[%emt 0:00:04]} Bc6 {[%emt 0:01:13]} 19. Be5 {[%emt 0:00:40]} Nd5 {[%emt 0:13:27]} 20. Ne4 {[%emt 0:04:02]} Qd7 {[%emt 0:03:21]} 21. Bc4 {[%emt 0:01:42]} f6 {[%emt 0:04:50]} 22. Bd6 {[%emt 0:02:09]} Bxd6 {[%emt 0:06:14]} 23. cxd6 {[%emt 0:11:32]} b6 {[%emt 0:02:40]} 24. Bxd5 {[%emt 0:12:28]} Bxd5 {[%emt 0:08:11]} 25. Qg3 {[%emt 0:00:06]} Qf7 26. Rc7 {[%emt 0:00:35]} Qg6 {[%emt 0:05:08]} 27. Qxg6 {[%emt 0:00:30]} hxg6 {[%emt 0:00:30]} 28. Nc3 {[%emt 0:38:37]} Rxd6 {[%emt 0:01:40]} 29. Nxd5 {[%emt 0:00:30]} exd5 {[%emt 0:33:03]} 30. Ree7 {[%emt 0:00:00]} Rad8 {[%emt 0:00:00]} 31. Rxg7+ {[%emt 0:00:00]} Kh8 32. Kf1 {[%emt 0:01:30]} d4 {[%emt 0:01:30]} 33. Rxg6 {[%emt 0:00:00]} d3 {[%emt 0:00:30]} 34. Rc4 {[%emt 0:01:00]} Kh7 {[%emt 0:00:00]} 35. Rg3 {[%emt 0:00:00]} Rd4 {[%emt 0:00:00]} 36. Rxd4 Rxd4 37. Ke1 {[%emt 0:00:00]} d2+ {[%emt 0:00:00]} 38. Kd1 {[%emt 0:00:00]} Rxb4 {[%emt 0:02:30]} 39. Rb3 {[%emt 0:00:00]} (39. Kxd2 Rb2+ 40. Ke3 Rxa2 $17) 39... Rf4 {[%emt 0:00:00]} 40. f3 {[%emt 0:00:00]} (40. Kxd2 Rxf2+ 41. Ke3 Rxg2 42. Rxb6 Rxa2 $11) 40... b5 {[%emt 0:00:00]} 41. Ra3 $1 {[%emt 0:00:00]} Rb4 {[%emt 0:00:00]} 42. g4 {[%emt 0:00:00]} (42. Rxa6 Rb1+ 43. Kxd2 Rb2+ 44. Kd3 Rxg2 $11) (42. Kxd2 $6 Rb2+ 43. Ke3 Rxg2 $11) 42... Rb1+ {[%emt 0:00:00]} (42... Rd4 $16 {was worth a try.}) 43. Kxd2 $18 {[%emt 0:00:00]} Rh1 {[%emt 0:00:00]} 44. Rxa6 {[%emt 0:00:00]} Kg7 {[%emt 0:00:00]} 45. Ke3 {[%emt 0:00:00]} Rxh3 {[%emt 0:00:00]} 46. Ke4 {[%emt 0:00:00]} (46. Kf4 $1 $18 {and the rest is easy.}) 46... f5+ $16 {[%emt 0:00:00]} 47. gxf5 {[%emt 0:00:00]} (47. Kxf5 $6 Rxf3+ 48. Kg5 Rf7 $11) 47... Rh2 {[%emt 0:00:00]} 48. a3 {[%emt 0:03:36]} Kf7 {[%emt 0:02:00]} 49. f6 {[%emt 0:01:16]} (49. Ra5 $16 Ra2 50. Ke5 (50. Rxb5 Rxa3 51. Rb4 Ra5 $11) 50... Re2+ 51. Kd6) 49... Rh4+ {[%emt 0:00:51]} (49... Rc2 $11) 50. f4 $1 $16 {[%emt 0:00:24]} Rh5 {[%emt 0:01:06]} 51. Kd4 {[%emt 0:01:57]} (51. Ra5 $1 $16) 51... Rf5 $11 {[%emt 0:00:27]} 52. Ke3 {[%emt 0:00:18]} Rc5 {[%emt 0:00:20]} 53. Ke4 {[%emt 0:00:15]} (53. Ra5 $11) 53... Rh5 $16 {[%emt 0:00:36]} 54. Ra5 {[%emt 0:00:14]} Rc5 {[%emt 0:00:54]} 55. Kd4 {[%emt 0:00:29]} (55. a4 $1 $16 {[%cal Ra4b5]} Rc4+ 56. Kf5 Rxa4 57. Rxb5) 55... Rc4+ $11 {[%emt 0:00:26]} 56. Kd5 {[%emt 0:00:58]} (56. Ke5 $5) 56... Rc3 {[%emt 0:00:22]} (56... Rxf4 {simplifies} 57. Rxb5 Rxf6 58. Kc5 Ke7) 57. Ra6 {[%emt 0:00:21]} (57. Rxb5 Rxa3 58. Ke5 Kg6) 57... Rc4 {[%emt 0:00:44]} 58. Ke5 {[%emt 0:00:50]} Rc5+ {[%emt 0:00:06]} 59. Ke4 {[%emt 0:00:16]} Rc4+ {[%emt 0:00:29]} (59... Rh5 $11) 60. Kf5 $14 {[%emt 0:00:20]} Rc5+ {[%emt 0:00:26]} 61. Kg4 $1 {[%emt 0:00:06]} Rd5 {[%emt 0:01:20]} 62. Ra5 $1 {[%emt 0:00:24]} Rd3 {[%emt 0:00:52]} 63. Kg5 {[%emt 0:00:05]} Rd5+ {[%emt 0:00:30]} 64. f5 {[%emt 0:00:06]} Rd3 $2 {[%emt 0:00:40][%mdl 8192]} (64... Rd7 $16) 65. Ra7+ $18 {[%emt 0:00:19]} ({And not} 65. Rxb5 Rg3+ 66. Kh4 Rxa3 $11) 65... Kf8 {[%emt 0:00:07] [#]} 66. f7 $1 {[%emt 0:02:38]} Rd6 {[%emt 0:00:03]} (66... Kg7 $142 67. a4 bxa4) 67. Rb7 {[%emt 0:00:59]} (67. Rc7 $142 b4 68. a4 (68. axb4 Rb6 $18)) 67... Ra6 {[%emt 0:00:16]} 68. Rxb5 $2 {[%emt 0:00:24]} (68. a4 $18 Rd6 69. axb5 (69. Rxb5 Rd1 $18)) 68... Rxa3 $11 {[%emt 0:01:14]} 69. Rb8+ {[%emt 0:00:02]} (69. Rb7 {is interesting.} Kg7 70. Rc7 Rg3+ 71. Kh4) 69... Kxf7 {[%emt 0:00:05]} 70. Rb7+ {[%emt 0:00:02]} Kf8 {[%emt 0:00:45]} 71. Kg6 {[%emt 0:00:06]} Rf3 {[%emt 0:00:28]} (71... Rg3+ $11 {remains equal.} 72. Kf6 Kg8) 72. Kf6 {[%emt 0:00:14]} ({Better is} 72. Rb6 $16) 72... Kg8 $11 {[%emt 0:00:23]} 73. Rb8+ {[%emt 0:00:31]} Kh7 {[%emt 0:00:00]} 74. Ke6 {[%emt 0:00:16]} Kg7 {[%emt 0:00:14]} 75. Rb7+ {[%emt 0:00:10]} Kf8 {[%emt 0:00:07]} (75... Kg8 $11) 76. Rb5 {[%emt 0:00:25]} (76. Rd7 $16) 76... Rf1 {[%emt 0:00:24]} (76... Kg7 $11 {keeps the balance.}) 77. Kf6 $16 {[%emt 0:00:11]} Kg8 {[%emt 0:00:12]} 78. Rb2 {[%emt 0:00:18]} (78. Rb8+ $16 Kh7 79. Re8) 78... Rf3 {[%emt 0:00:20] [#]} (78... Ra1 $1 $11) 79. Rg2+ $1 $16 {[%emt 0:01:13]} Kf8 {[%emt 0:00:09]} 80. Kg6 {[%emt 0:00:15]} Ke7 {[%emt 0:02:06]} 81. Rg5 {[%emt 0:00:34]} Kf8 {[%emt 0:00:46]} 82. Rh5 {[%emt 0:00:05]} (82. Rg1 $16) 82... Kg8 $1 $11 {[%emt 0:00:47]} 83. Rh1 {[%emt 0:00:06]} Ra3 {[%emt 0:00:47]} (83... Rg3+ $11 84. Kf6 Rc3) 84. Rb1 $16 {[%emt 0:00:14]} Rg3+ {[%emt 0:00:18]} 85. Kf6 {[%emt 0:00:05]} Rf3 {[%emt 0:00:11]} 86. Rb8+ {[%emt 0:00:46]} Kh7 {[%emt 0:00:01]} 87. Rb7+ {[%emt 0:00:06]} Kg8 $1 {[%emt 0:00:30]} 88. Rb8+ Kh7 {[%emt 0:00:30]} 89. Rb7+ {[%emt 0:01:00]} Kg8 $1 {[%emt 0:00:30]} 1/2-1/2

[Event "9th Porticcio Open 2024"]
[Site "Porticcio"]
[Date "2024.07.01"]
[Round "3.8"]
[White "Priansh Das"]
[Black "Nevednichy, Vladislav"]
[Result "0-1"]
[ECO "B51"]
[WhiteElo "2263"]
[BlackElo "2471"]
[Annotator "TA"]
[PlyCount "130"]
[EventDate "2024.07.01"]
[EventType "swiss"]
[EventCountry "FRA"]
[SourceTitle "playchess.com"]
[Source "ChessBase"]
[SourceQuality "1"]
[TimeControl "5400+30"]

{[%evp 9,130,35,24,20,33,31,36,18,26,22,19,13,37,0,0,0,0,-10,-8,-6,-11,-11,0,0,0,0,0,0,0,0,0,0,0,0,0,0,0,0,0,0,0,-12,-16,-10,-7,-11,0,-14,-7,-24,-20,-18,-19,-20,-6,-100,-94,-91,-90,-136,-102,-136,-136,-193,-166,-167,-167,-160,-161,-205,-202,-340,-339,-416,-416,-408,-381,-409,-420,-362,-350,-470,-352,-352,-331,-337,-324,-286,-339,-339,-315,-345,-338,-345,-345,-389,-325,-376,-255,-485,-422,-444,-412,-608,-604,-1489,-1488,-6411,-6101,-5795,-5795,-29962,-29948,-29971,-29972,-29972,-29972,-29975,-29976,-29980,-29981,-29989,-29978]} 1. e4 {[%emt 0:00:04]} c5 {[%emt 0:00:41]} 2. Nf3 {[%emt 0:00:14]} d6 {[%emt 0:00:45]} 3. Bb5+ {[%emt 0:02:03]} Nd7 {[%emt 0:00:12]} 4. O-O {[%emt 0:00:10]} Ngf6 {[%emt 0:00:31]} 5. Re1 {[%emt 0:00:15]} a6 {[%emt 0:00:05]} 6. Bd3 {[%emt 0:04:37]} e5 {[%emt 0:04:40]} 7. c3 {[%emt 0:00:38]} Be7 {[%emt 0:01:04]} 8. Bc2 {[%emt 0:00:13] White is slightly better.} O-O {[%emt 0:00:12]} 9. d4 {[%emt 0:00:11]} b5 {[%emt 0:00:36]} 10. a4 {[%emt 0:01:45]} Rb8 {[%emt 0:00:50]} 11. d5 {[%emt 0:06:54]} c4 {[%emt 0:05:10]} 12. Nbd2 {[%emt 0:01:54]} Nc5 {[%emt 0:02:57]} 13. Nf1 {[%emt 0:02:55]} Qc7 {[%emt 0:15:03]} 14. axb5 {[%emt 0:00:59]} axb5 {[%emt 0:00:04]} 15. Ng3 {[%emt 0:00:07]} b4 {[%emt 0:05:32]} 16. cxb4 {[%emt 0:05:24]} Rxb4 {[%emt 0:00:14]} 17. Qd2 {[%emt 0:03:44]} Qb6 {[%emt 0:03:53]} 18. Qc3 {[%emt 0:01:41]} Bd7 {[%emt 0:00:43]} 19. Bd2 {[%emt 0:06:35]} Rxb2 {[%emt 0:00:41]} 20. Reb1 {[%emt 0:01:07]} Rxb1+ {[%emt 0:04:29]} 21. Rxb1 {[%emt 0:00:12]} Qa6 {[%emt 0:00:24]} 22. Ra1 {[%emt 0:00:51]} Qb5 {[%emt 0:03:43]} 23. Rb1 {[%emt 0:01:46]} Nb3 {[%emt 0:01:38]} 24. Bxb3 {[%emt 0:02:46]} cxb3 {[%emt 0:00:05]} 25. Qxb3 {[%emt 0:01:14]} Qxb3 {[%emt 0:00:59]} 26. Rxb3 {[%emt 0:00:07]} Ra8 {[%emt 0:00:25]} 27. h3 {[%emt 0:00:12]} Bd8 {[%emt 0:05:11]} 28. Ne1 {[%emt 0:04:12]} h5 {[%emt 0:01:29] Strongly threatening ...h4.} 29. Nf3 {[%emt 0:02:23]} g6 {[%emt 0:01:59]} 30. Bg5 {[%emt 0:02:27]} Kg7 {[%emt 0:00:14]} 31. Nd2 {[%emt 0:01:18]} Ra1+ {[%emt 0:02:39]} 32. Rb1 {[%emt 0:00:54]} (32. Ngf1 $11) 32... Rxb1+ $17 {[%emt 0:01:30] White is on the road to losing.} 33. Nxb1 {[%emt 0:00:06]} Bb5 {[%emt 0:00:55]} 34. Nd2 {[%emt 0:04:46]} (34. Nc3 $142 Bd3 35. Na2) 34... Bd3 {[%emt 0:01:01]} 35. Ngf1 {[%emt 0:03:01]} Bb6 {[%emt 0:00:54]} 36. Ng3 {[%emt 0:09:54]} (36. Bxf6+ $17 Kxf6 37. g3) 36... Bc5 {[%emt 0:04:05]} 37. Nb3 {[%emt 0:05:46]} Ba7 {[%emt 0:00:15] A strong pair of Bishops.} 38. Nd2 {[%emt 0:03:51]} Bb6 {[%emt 0:00:08]} 39. Bh4 {[%emt 0:05:04] [#]} Nh7 $1 {[%emt 0:03:41]} 40. Kh1 {[%emt 0:01:19]} (40. Nf3 $142) 40... Kf8 $19 {[%emt 0:05:13]} (40... Bxf2 41. Nxh5+ gxh5 42. Bxf2 $15) 41. Ngf1 {[%emt 0:01:33]} g5 {[%emt 0:00:20]} 42. Bg3 {[%emt 0:00:05]} h4 {[%emt 0:00:04]} 43. Bh2 {[%emt 0:00:06]} Bxf2 {[%emt 0:00:06]} 44. g4 {[%emt 0:01:05]} Nf6 {[%emt 0:13:23]} 45. Kg2 {[%emt 0:00:19]} Be1 {[%emt 0:00:30]} (45... Bxe4+ 46. Kxf2 Bxd5 47. Ne3 $11) 46. Kf3 {[%emt 0:00:27]} Ke7 {[%emt 0:06:41][%cal Of6e4]} 47. Ke3 {[%emt 0:01:16]} Bb5 {[%emt 0:00:04]} 48. Bg1 {[%emt 0:00:36]} Nd7 {[%emt 0:02:18]} 49. Bf2 {[%emt 0:01:00] [#]} Bxd2+ {[%emt 0:01:21]} 50. Nxd2 {[%emt 0:00:05][%mdl 4096] Endgame. KBN-KBN} Nf8 {[%emt 0:00:07]} 51. Kf3 {[%emt 0:06:04]} Ng6 {[%emt 0:00:14]} 52. Be3 {[%emt 0:00:06]} f6 {[%emt 0:00:16]} 53. Kf2 {[%emt 0:00:13]} Bd3 {[%emt 0:00:11] Hoping for ...Nf4.} 54. Kf3 $2 {[%emt 0:00:28]} (54. Kg1) 54... Kd7 {[%emt 0:00:05]} 55. Kf2 {[%emt 0:00:33]} Kc7 {[%emt 0:00:04] aiming for ...Nf4.} 56. Kf3 {[%emt 0:00:32]} (56. Kg1 $142) 56... Nf4 {[%emt 0:03:55]} 57. Bxf4 {[%emt 0:01:20]} exf4 {[%emt 0:01:26] KB-KN} 58. Nb3 {[%emt 0:03:06]} Bf1 {[%emt 0:00:20]} 59. Nd4 {[%emt 0:00:03]} Bxh3 {[%emt 0:00:28]} 60. Nb5+ {[%emt 0:04:18]} Kd7 {[%emt 0:00:15] Black mates.} 61. Nc3 {[%emt 0:00:35]} Bf1 {[%emt 0:00:06]} 62. Kf2 {[%emt 0:00:02]} Bd3 {[%emt 0:00:12]} 63. Kg2 {[%emt 0:00:15]} Kc7 {[%emt 0:00:16]} 64. Kf3 {[%emt 0:00:07]} h3 {[%emt 0:00:48]} 65. Kf2 {[%emt 0:00:11]} Kb6 {[%emt 0:00:19] Weighted Error Value: White=0.51/Black=0.11 (very precise) .  Mistake:       	White=6     	---        Inaccurate:     	White=3     	Black=1      OK:         	White=17    	Black=22     Best:        	White=2     	Black=5} 0-1

[Event "9th Porticcio Open 2024"]
[Site "Porticcio"]
[Date "2024.07.01"]
[Round "3.9"]
[White "Vuitton, Gilles"]
[Black "Navarro Molina, David"]
[Result "1/2-1/2"]
[ECO "C24"]
[WhiteElo "1980"]
[BlackElo "2076"]
[Annotator "NA RC"]
[PlyCount "109"]
[EventDate "2024.07.01"]
[EventType "swiss"]
[EventCountry "FRA"]
[SourceTitle "playchess.com"]
[Source "ChessBase"]
[SourceQuality "1"]
[TimeControl "5400+30"]

1. e4 {[%emt 0:00:08]} e5 {[%emt 0:00:05]} 2. Bc4 {[%emt 0:00:30]} Nf6 {[%emt 0:00:33]} 3. Qe2 {[%emt 0:00:15]} Bc5 {[%emt 0:04:16]} 4. Nf3 {[%emt 0:00:14]} d6 {[%emt 0:01:11]} 5. c3 {[%emt 0:03:29]} Nc6 {[%emt 0:03:33]} 6. Bb3 {[%emt 0:00:11]} Qe7 {[%emt 0:05:15]} 7. h3 {[%emt 0:02:54]} Be6 {[%emt 0:04:03]} 8. Bc2 {[%emt 0:00:10]} a5 {[%emt 0:03:43]} 9. a4 {[%emt 0:01:56]} h6 {[%emt 0:06:45]} 10. d3 {[%emt 0:00:44]} g5 {[%emt 0:09:58]} 11. Nh2 {[%emt 0:22:13]} d5 {[%emt 0:07:25]} 12. Nd2 {[%emt 0:08:47]} O-O-O {[%emt 0:05:51]} 13. Ndf1 {[%emt 0:02:15]} d4 {[%emt 0:12:46]} 14. Ng3 {[%emt 0:01:18]} Qd7 {[%emt 0:02:45]} 15. Qf3 {[%emt 0:02:40]} Be7 {[%emt 0:02:15]} 16. Nf5 {[%emt 0:01:26]} Bxf5 {[%emt 0:02:41]} 17. Qxf5 {[%emt 0:03:56]} Qxf5 {[%emt 0:00:38]} 18. exf5 {[%emt 0:00:05]} Nd5 {[%emt 0:01:33]} 19. Bd2 {[%emt 0:08:54]} h5 {[%emt 0:02:14]} 20. g3 {[%emt 0:03:09]} f6 {[%emt 0:02:13]} 21. Bb3 {[%emt 0:04:33]} Bc5 {[%emt 0:01:07]} 22. Bxd5 {[%emt 0:00:55]} Rxd5 {[%emt 0:00:07]} 23. c4 {[%emt 0:00:44]} Rdd8 {[%emt 0:00:40]} 24. f3 {[%emt 0:04:43]} Bb4 {[%emt 0:04:56]} 25. Nf1 {[%emt 0:04:05]} Be7 {[%emt 0:04:54]} 26. h4 {[%emt 0:06:38]} b6 {[%emt 0:02:01]} 27. Ke2 {[%emt 0:01:54]} Nb8 {[%emt 0:03:44]} 28. Rb1 {[%emt 0:01:56]} c5 {[%emt 0:01:33]} 29. Kf2 {[%emt 0:02:01]} Rdg8 {[%emt 0:00:51]} 30. Re1 {[%emt 0:00:46]} Bd6 {[%emt 0:01:16]} 31. Re4 {[%emt 0:01:35]} Nc6 {[%emt 0:00:47]} 32. hxg5 {[%emt 0:03:20]} fxg5 {[%emt 0:00:13]} 33. Kg2 {[%emt 0:00:39]} Ne7 {[%emt 0:00:18]} 34. g4 {[%emt 0:02:31]} h4 {[%emt 0:00:12]} 35. Re2 {[%emt 0:00:53]} Kd7 {[%emt 0:01:33]} 36. Kf2 {[%emt 0:00:20]} Rh7 {[%emt 0:01:30]} 37. Ke1 {[%emt 0:00:04]} Rf7 {[%emt 0:00:31]} 38. Kd1 {[%emt 0:01:03]} Rgg7 {[%emt 0:00:48]} 39. Be1 {[%emt 0:00:16]} Ng8 {[%emt 0:00:22]} 40. Nd2 {[%emt 0:00:21]} Nf6 {[%emt 0:00:07]} 41. Ne4 {[%emt 0:01:21]} Nxe4 {[%emt 0:01:24]} 42. fxe4 {[%emt 0:00:13]} Ke7 {[%emt 0:00:20]} 43. Reh2 {[%emt 0:00:36]} Kf6 {[%emt 0:01:29]} 44. Ke2 {[%emt 0:00:43]} Rh7 {[%emt 0:00:43]} 45. Kf3 {[%emt 0:00:39]} Bc7 {[%emt 0:00:14]} 46. Bd2 {[%emt 0:01:11]} Rh8 {[%emt 0:00:21]} 47. Kg2 {[%emt 0:00:41]} Rfh7 {[%emt 0:00:27]} 48. Kh3 {[%emt 0:00:05]} Bd6 {[%emt 0:00:09]} 49. Rf1 {[%emt 0:00:20]} Rf7 {[%emt 0:00:23]} 50. Rhf2 {[%emt 0:00:20]} Rhf8 {[%emt 0:00:17]} 51. Rf3 {[%emt 0:00:22]} Rh8 {[%emt 0:00:14]} 52. R3f2 {[%emt 0:00:06]} Rhf8 {[%emt 0:00:05]} 53. Rf3 {[%emt 0:00:03]} Rh8 {[%emt 0:00:08]} 54. R3f2 {[%emt 0:00:07]} Rhf8 {[%emt 0:04:03]} 55. Rf3 {[%emt 0:06:42]} 1/2-1/2

[Event "9th Porticcio Open 2024"]
[Site "Porticcio"]
[Date "2024.07.01"]
[Round "3.11"]
[White "Smadi, Laurent"]
[Black "Tenninger, Marc"]
[Result "1/2-1/2"]
[ECO "B14"]
[WhiteElo "1827"]
[BlackElo "1899"]
[Annotator "NA RC"]
[PlyCount "55"]
[EventDate "2024.07.01"]
[EventType "swiss"]
[EventCountry "FRA"]
[SourceTitle "playchess.com"]
[Source "ChessBase"]
[SourceQuality "1"]
[TimeControl "5400+30"]

1. e4 {[%emt 0:00:06]} c6 {[%emt 0:00:07]} 2. d4 {[%emt 0:00:12]} d5 {[%emt 0:00:08]} 3. exd5 {[%emt 0:00:07]} cxd5 {[%emt 0:00:06]} 4. c4 {[%emt 0:00:07]} Nf6 {[%emt 0:00:46]} 5. Nc3 {[%emt 0:00:11]} e6 {[%emt 0:00:22]} 6. Nf3 {[%emt 0:00:59]} Be7 {[%emt 0:00:18]} 7. Bg5 {[%emt 0:01:39]} Nbd7 {[%emt 0:07:30]} 8. c5 {[%emt 0:02:01]} O-O {[%emt 0:00:38]} 9. Bb5 {[%emt 0:01:19]} a6 {[%emt 0:09:08]} 10. Bxd7 {[%emt 0:00:37]} Bxd7 {[%emt 0:00:16]} 11. O-O {[%emt 0:00:13]} h6 {[%emt 0:00:48]} 12. Bf4 {[%emt 0:01:29]} Bc6 {[%emt 0:02:50]} 13. b4 {[%emt 0:01:39]} Ne4 {[%emt 0:05:29]} 14. Qc2 {[%emt 0:14:50]} Rc8 {[%emt 0:04:31]} 15. Ne5 {[%emt 0:05:16]} Qe8 {[%emt 0:10:18]} 16. Rfe1 {[%emt 0:04:25]} Nxc3 {[%emt 0:03:58]} 17. Qxc3 {[%emt 0:12:59]} Bf6 {[%emt 0:06:33]} 18. Ng4 {[%emt 0:11:57]} Qd8 {[%emt 0:04:29]} 19. Nxf6+ {[%emt 0:03:54]} Qxf6 {[%emt 0:00:19]} 20. Be5 {[%emt 0:00:09]} Qf5 {[%emt 0:01:48]} 21. Re3 {[%emt 0:03:02]} f6 {[%emt 0:03:28]} 22. Bd6 {[%emt 0:00:58]} Rf7 {[%emt 0:01:09]} 23. Rae1 {[%emt 0:03:43]} Re8 {[%emt 0:00:33]} 24. Rf3 {[%emt 0:05:36]} Qg6 {[%emt 0:01:21]} 25. Rg3 {[%emt 0:01:05]} Qf5 {[%emt 0:00:42]} 26. Rf3 {[%emt 0:01:37]} Qg6 {[%emt 0:00:08]} 27. Rg3 {[%emt 0:00:07]} Qf5 {[%emt 0:00:11]} 28. Rf3 {[%emt 0:24:13]} 1/2-1/2

[Event "9th Porticcio Open 2024"]
[Site "Porticcio"]
[Date "2024.07.01"]
[Round "4.1"]
[White "Druska, Juraj"]
[Black "Bailet, Pierre"]
[Result "1/2-1/2"]
[ECO "C47"]
[WhiteElo "2466"]
[BlackElo "2491"]
[Annotator "TA"]
[PlyCount "79"]
[EventDate "2024.07.01"]
[EventType "swiss"]
[EventCountry "FRA"]
[SourceTitle "playchess.com"]
[Source "ChessBase"]
[SourceQuality "1"]
[TimeControl "5400+30"]

{[%evp 9,79,15,33,37,25,37,35,27,30,14,16,13,14,12,32,31,20,14,24,20,22,12,25,20,29,29,41,28,33,33,33,33,81,62,131,127,111,93,90,93,177,190,179,0,0,0,0,0,0,0,0,0,0,0,0,0,0,0,0,0,0,0,0,0,0,0,0,0,0,0,0,0]} 1. e4 {[%emt 0:00:03]} e5 {[%emt 0:03:37]} 2. Nf3 {[%emt 0:00:32]} Nc6 {[%emt 0:00:19]} 3. Nc3 {[%emt 0:00:15]} Nf6 {[%emt 0:00:25]} 4. a4 {[%emt 0:00:45]} d6 {[%emt 0:03:02]} 5. d4 {[%emt 0:00:24]} exd4 {[%emt 0:01:39]} 6. Nxd4 {[%emt 0:00:10]} Be7 {[%emt 0:00:38]} 7. Bb5 {[%emt 0:09:25]} Bd7 {[%emt 0:00:58]} 8. O-O {[%emt 0:00:18] White is slightly better.} O-O {[%emt 0:00:56]} 9. Re1 {[%emt 0:01:26]} a6 {[%emt 0:09:04]} 10. Bxc6 {[%emt 0:07:45]} bxc6 {[%emt 0:03:22]} 11. Qf3 {[%emt 0:01:43]} c5 {[%emt 0:05:02]} 12. Nf5 {[%emt 0:00:39]} Bxf5 {[%emt 0:00:12]} 13. Qxf5 {[%emt 0:01:11]} Rb8 {[%emt 0:04:27]} 14. b3 {[%emt 0:02:06]} Re8 {[%emt 0:08:19]} 15. Bg5 {[%emt 0:17:29]} h6 {[%emt 0:05:52]} 16. Bh4 {[%emt 0:00:12]} Qc8 {[%emt 0:03:04]} 17. Qxc8 {[%emt 0:01:38]} Rbxc8 {[%emt 0:02:18]} 18. e5 {[%emt 0:12:17]} dxe5 {[%emt 0:00:29]} 19. Rxe5 {[%emt 0:00:11][%cal Be1e5,Be5f5,Bf5c5,Bc5c4][%mdl 32]} g5 {[%emt 0:01:54]} 20. Bg3 {[%emt 0:03:48]} Ng4 {[%emt 0:08:43]} (20... Kf8 $14 {feels stronger.}) 21. Rf5 $16 {[%emt 0:01:08]} Bf6 {[%emt 0:01:00]} (21... Nf6 $14) 22. Rxc5 {[%emt 0:00:55][%cal Oh2h3]} Bd4 {[%emt 0:02:39] [#]} 23. Rc4 {[%emt 0:00:06]} (23. Rxc7 $2 {too greedy.} Rxc7 (23... Bxc3 $2 24. Rxc8 Rxc8 25. Rd1 $19) 24. Bxc7 Nxf2 $19 (24... Bxc3 $2 25. Rd1 $19) (24... Bxf2+ $2 25. Kf1 $19)) 23... c5 {[%emt 0:00:31]} 24. h3 {[%emt 0:04:07]} Ne3 {[%emt 0:15:51]} (24... Ne5 $16 25. Bxe5 Rxe5) 25. fxe3 $18 {[%emt 0:00:08]} Rxe3 {[%emt 0:00:04] [#]} 26. Bf2 {[%emt 0:00:13]} ({Only move:} 26. Rxd4 $1 $18 cxd4 27. Nd5) 26... Rxc3 $11 {[%emt 0:00:12] The position is equal.} 27. Rd1 {[%emt 0:01:31]} Rxc4 {[%emt 0:00:28]} 28. bxc4 {[%emt 0:00:02]} Bxf2+ {[%emt 0:02:05]} 29. Kxf2 {[%emt 0:00:06][%mdl 4096] Endgame. KR-KR} Rb8 {[%emt 0:03:16]} 30. Rd5 {[%emt 0:02:35][%cal Of2e2]} Rb2 {[%emt 0:00:56]} 31. Rxc5 {[%emt 0:00:00]} Rxc2+ {[%emt 0:00:00]} 32. Kf3 {[%emt 0:00:00]} Kg7 {[%emt 0:00:00]} 33. Rc6 {[%emt 0:02:53]} a5 {[%emt 0:01:59]} 34. Rc5 {[%emt 0:00:16]} Kg6 {[%emt 0:00:28]} 35. Rxa5 {[%emt 0:01:14]} Rxc4 {[%emt 0:00:09]} 36. Ra8 {[%emt 0:00:42]} Rc3+ {[%emt 0:00:54]} 37. Kf2 {[%emt 0:00:01]} Rc2+ {[%emt 0:00:07]} 38. Kf3 {[%emt 0:00:05]} Rc3+ {[%emt 0:00:04]} 39. Kf2 {[%emt 0:00:04]} Rc2+ {[%emt 0:00:05]} 40. Kf3 {[%emt 0:00:09] Weighted Error Value: White=0.09 (flawless) /Black=0.09 (flawless) .  Missed win:     	White=1     	---        Mistake:       	---       	Black=3      OK:         	White=11    	Black=24     Best:        	White=3     	---} 1/2-1/2